Cogmind - Beta 15 @@@ ROGUE MODE // 2025.07.28 @ 15:19:57 Player: shapeshifter Result: Destroyed by D-53 Grenadier with Mini Grenade Launcher Performance ------------- Evolutions (0) 0 Regions Visited (2) 400 Robots Destroyed (29) 145 Value Destroyed (624) 624 Prototype IDs (0) 0 Alien Tech Used (0) 0 Bonus (0) 0 TOTAL SCORE: 1169 Bonus ------- None Cogmind --------- Core Integrity 0/250 Matter 178/300 Energy 100/100 System Corruption 0% Temperature Cool (0) Movement Treading (160) Location -10/Mines Parts ------- > --- POWER (1) -------- (None) > --- PROPULSION (2) --- Light Treads > --- UTILITY (2) ------ Medium Storage Unit Core Shielding > --- WEAPON (2) ------- Light Assault Rifle > --- INVENTORY (10) --- Small Storage Unit High-capacity Matter Pod (0) Propulsion Shielding Peak State ------------ > --- POWER ------------ Ion Engine > --- PROPULSION ------- Wheel Compact Wheel > --- UTILITY ---------- Small Storage Unit Seismic Detector > --- WEAPON ----------- Small Laser Assault Rifle > --- INVENTORY -------- Ion Engine Light Treads Light Treads EM Pulse Gun [Rating: 7] Favorites ----------- Power Ion Engine Engine Ion Engine Propulsion Compact Wheel Treads Light Treads Wheel Compact Wheel Utility Medium Storage Unit Device Heat Sink Storage Medium Storage Unit Protection Core Shielding Weapon Light Assault Rifle Energy Gun Small Laser Ballistic Gun Light Assault Rifle Launcher Grenade Launcher Build | -11 -10 -10 ------- Run | Yrd Mat Min Slots Evolved . | . . . Power . | . . . Propulsion . | . . . Utility . | . . . Weapon . | . . . Parts Attached 19 | 7 5 7 Power 3 | 1 1 1 Engine 3 | 1 1 1 Core . | . . . Reactor . | . . . Propulsion 4 | 2 . 2 Treads 2 | . . 2 Leg . | . . . Wheel 2 | 2 . . Hover . | . . . Flight . | . . . Utility 6 | 2 3 1 Device 3 | 1 2 . Storage 2 | 1 1 . Processor . | . . . Hackware . | . . . Protection 1 | . . 1 Artifact . | . . . Weapon 6 | 2 1 3 Energy Gun 2 | 1 1 . Energy Cannon . | . . . Ballistic Gun 3 | 1 . 2 Ballistic Cannon . | . . . Launcher 1 | . . 1 Special Weapon . | . . . Impact Weapon . | . . . Slashing Weapon . | . . . Piercing Weapon . | . . . Special Melee Weapon . | . . . Unidentified Prototypes . | . . . Parts Lost 10 | . 2 8 Power 1 | . . 1 Propulsion 3 | . 1 2 Utility 2 | . 1 1 Weapon 4 | . . 4 Highest Loss Streak 3 | . 1 3 To Critical Strikes . | . . . Average Backups 4 | 3 4 4 Power . | . . . Propulsion 1 | 1 2 1 Utility 1 | . . 2 Weapon 1 | . 1 . Tool/Special . | . . . Unused Backups 1 | . . 1 Power . | . . . Propulsion . | . . . Utility 1 | . . 1 Weapon . | . . . Tool/Special . | . . . Average Slot Usage (%) 85 | . 94 76 Engine 13 | . 14 12 Treads 7 | . . 13 Wheel 14 | . 23 6 Device 6 | . 13 . Storage 14 | . 14 14 Energy Gun 6 | . 14 . Ballistic Gun 14 | . 14 15 Launcher 6 | . . 12 Peak Build Rating 7 | 7 7 6 Average Rating 5 | 3 6 5 On Entrance 4 | . 7 6 Naked Turns . | . . . Heaviest Build 20 | 14 20 19 Greatest Support 40 | 26 26 40 Greatest Overweight (x) 5 | . 1 5 Average Overweight (x) . | . . . Largest Inventory Capacity 10 | 8 10 10 Average Capacity 9 | 6 9 10 Most Carried 6 | 5 6 6 Average Carried 4 | 3 4 4 Final Capacity 10 | 8 10 10 Final Carried 5 | 4 5 3 Class Distribution -------------------- 100% | Mutant Dominant Class ---------------- Mutant | -10/Materials Mutant | -10/Mines Resources | -11 -10 -10 ----------- Run | Yrd Mat Min Matter Collected 571 | 237 210 124 Remotely . | . . . Salvage Created 742 | 22 480 240 Parts 55 | 3 25 27 Haulers Intercepted . | . . . Recyclers Shooed 4 | . 3 1 Parts Field Recycled . | . . . Retrieved Matter . | . . . Parts Self-Destructed . | . . . Prevented . | . . . Kills | -11 -10 -10 ------- Run | Yrd Mat Min Combat Hostiles Destroyed 23 | . 10 13 Guns 13 | . 10 3 AOE 10 | . . 10 Classes Destroyed 7 | 1 4 2 Worker 3 | . . 3 Tunneler 1 | 1 . . Recycler 1 | . 1 . Watcher 1 | . 1 . Swarmer 12 | . 3 9 Grunt 9 | . 7 2 Sentry 2 | . . 2 Best Kill Streak 6 | 1 4 6 Combat Bots Only 5 | . 3 5 Max Kills in Single Turn 3 | 1 1 3 Gunslinging . | . . . Exploded 3 | . . 3 Melee . | . . . Uniques/NPCs Destroyed . | . . . Combat | -11 -10 -10 -------- Run | Yrd Mat Min Hostile Shots Fired 107 | . 43 64 Missed 25 | . 9 16 Hits 82 | . 34 48 Projectile 82 | . 34 48 AOE 5 | . . 5 Critical Strikes 3 | . 1 2 Damage Taken 1148 | . 374 774 Core 263 | . 61 202 Absorbed by Shields . | . . . Redirected to Shielding 11 | . . 11 Core Remaining (%) 100 | 100 . . Volleys Fired 79 | 4 46 29 Largest 2 | 2 2 2 Hottest 60 | 60 60 60 Shots Fired 146 | 8 92 46 Gun 130 | 8 92 30 Cannon . | . . . Launcher 16 | . . 16 Special . | . . . Kinetic 78 | 4 46 28 Thermal 49 | 4 45 . Explosive 16 | . . 16 Electromagnetic 3 | . 1 2 Robot Hit Streak 9 | 2 9 9 Robot Miss Streak 5 | 2 3 5 Penetration Max . | . . . Secondary Targets 1 | . 1 . Max Gunslinging Chain 1 | . 1 . Shots Hit Robots 78 | 5 59 14 Core Hits 50 | 1 23 26 Critical Kills . | . . . Critical Parts Destroyed . | . . . Critical Strikes . | . . . Melee Attacks . | . . . Impact . | . . . Slashing . | . . . Piercing . | . . . Sneak Attacks . | . . . Combat Hostiles . | . . . Follow-up Attacks . | . . . Damage Inflicted 1597 | 60 736 801 Guns 903 | 60 736 107 Cannons . | . . . Explosions 689 | . . 689 Melee . | . . . Ramming 5 | . . 5 Kinetic 517 | 27 383 107 Thermal 386 | 33 353 . Explosive 689 | . . 689 Electromagnetic . | . . . Impact . | . . . Slashing . | . . . Piercing . | . . . Highest Corruption . | . . . Average Corruption . | . . . Corruption Purged . | . . . Corruption Blocked . | . . . Overload Shots . | . . . Overflow Damage 24 | . . 24 Projectiles . | . . . Explosions 24 | . . 24 Melee . | . . . Knockbacks . | . . . Impact . | . . . Kinetic . | . . . Secondary . | . . . Self-Inflicted Damage 112 | . . 112 Shots 5 | . . 5 Rammed 1 | . . 1 Targets Rammed 1 | . . 1 Kicked . | . . . Crushed . | . . . Highest Temperature 37 | . 30 37 Average Temperature 15 | . 16 14 Received Heat Transfer 324 | . 198 126 Siege Activations . | . . . Martial Activations . | . . . Shielding Activations . | . . . Robots Disrupted . | . . . Combat Hostiles . | . . . Robots Corrupted . | . . . Combat Hostiles . | . . . Parts Fried . | . . . Impact Corruptions . | . . . Robots Melted . | . . . Combat Hostiles . | . . . Parts Melted 1 | . 1 . Heat Transferred 875 | 75 800 . Parts Sabotaged . | . . . Parts Stolen . | . . . Parts Stripped . | . . . Power Chain Reactions . | . . . Alert | -11 -10 -10 ------- Run | Yrd Mat Min Maximum Alert Level 1 | . . 1 Low Security (%) 97 | 100 100 94 Level 1 2 | . . 5 Level 2 . | . . . Level 3 . | . . . Level 4 . | . . . Level 5 . | . . . High Security . | . . . Max Security . | . . . Peak Influence 210 | 5 106 210 Initial 6 | . 3 6 Average 80 | . 44 121 Influence Increases 741 | 5 268 468 Destroy 0b10 Robot/C 460 | . 200 260 Destroy 0b10 Robot/NC 30 | 5 10 15 Destroy Leader 82 | . 42 40 Successful Hack 6 | . . 6 Disable Machine 75 | . . 75 Destroy Structure 73 | . 1 72 Lose Combat Pursuer 15 | . 15 . Influence Decreases 645 | . 257 388 Entered New Map 12 | . 2 10 Time Decay 537 | . 235 302 Lost Part 96 | . 20 76 Squads Dispatched 2 | . 2 . Investigation 1 | . 1 . Extermination . | . . . Reinforcement 1 | . 1 . Assault . | . . . Garrison . | . . . Intercept . | . . . Searches Triggered . | . . . Construction Impeded . | . . . Haulers Reinforced . | . . . Active Scanning Responses . | . . . Cargo Convoy Interrupts . | . . . Stealth | -11 -10 -10 --------- Run | Yrd Mat Min Distress Signals . | . . . Communications Jammed . | . . . Distress Signals . | . . . Times Spotted 35 | . 18 17 Peak Tracking Total 9 | . 3 9 Tactical Retreats 2 | . 1 1 Traps | -11 -10 -10 ------- Run | Yrd Mat Min Traps Triggered . | . . . Indirectly . | . . . Trap Hack Attempts . | . . . Triggered . | . . . Disarmed . | . . . Reprogrammed . | . . . Reused . | . . . Traps Extracted . | . . . Installed . | . . . Triggered . | . . . Machines | -11 -10 -10 ---------- Run | Yrd Mat Min Machines Disabled 7 | . . 7 Max in Single Turn 3 | . . 3 Machines Repaired . | . . . Machines Dismantled . | . . . Machines Sabotaged . | . . . Overloaded Fab Kills . | . . . Hacking | -11 -10 -10 --------- Run | Yrd Mat Min Machines Accessed 5 | . 4 1 Terminals 4 | . 3 1 Fabricators . | . . . Repair Stations . | . . . Recycling Units 1 | . 1 . Scanalyzers . | . . . Garrison Access . | . . . Total Hacks 13 | . 9 4 Successful 6 | . 4 2 Failed 7 | . 5 2 Catastrophic 2 | . 2 . Database Lockouts . | . . . Manual 12 | . 8 4 Terminals 12 | . 8 4 Fabricators . | . . . Repair Stations . | . . . Recycling Units 1 | . 1 . Scanalyzers . | . . . Garrison Access . | . . . Terminal Hacks 2 | . 1 1 Branch Access Points 1 | . 1 . Zone Layout 1 | . . 1 Fabricator Hacks . | . . . Repair Station Hacks . | . . . Recycling Unit Hacks 1 | . 1 . Report Inventory 1 | . 1 . Scanalyzer . | . . . Garrison Access Hacks . | . . . Unauthorized Hacks 3 | . 2 1 Terminals 3 | . 2 1 Assimilate 1 | . . 1 Botnet 2 | . 2 . Fabricators . | . . . Repair Stations . | . . . Recycling Units . | . . . Scanalyzers . | . . . Garrison Access . | . . . Data Cores Recovered . | . . . Used . | . . . Hacking Detections 3 | . 2 1 Full Trace Events 1 | . 1 . Feedback Events . | . . . Feedback Blocked . | . . . Robot Schematics Acquired . | . . . Robots Built . | . . . Authchips . | . . . Time . | . . . Total Robot Build Rating . | . . . Part Schematics Acquired . | . . . Parts Built . | . . . Authchips . | . . . Time . | . . . Total Part Build Rating . | . . . Parts Repaired . | . . . Time . | . . . Parts Recycled . | . . . Recycled Matter . | . . . Retrieved Matter . | . . . Retrieved Components . | . . . Parts Scanalyzed . | . . . Part Schematics Acquired . | . . . Parts Damaged . | . . . Bothacking | -11 -10 -10 ------------ Run | Yrd Mat Min Used RIF Installer . | . . . Robots Hacked . | . . . Non-combat . | . . . Combat . | . . . Robot Hacks Applied . | . . . Relay Couplers Released . | . . . Fabnet Peak Effective % . | . . . Robots Rewired . | . . . Allies Hacked . | . . . Hacks Repelled . | . . . Allies | -11 -10 -10 -------- Run | Yrd Mat Min Total Allies . | . . . Largest Group . | . . . Highest-Rated Group . | . . . Highest-Rated Ally . | . . . Total Orders . | . . . Ally Attacks . | . . . Total Damage . | . . . Kills . | . . . Allies Corrupted . | . . . Allies Melted . | . . . Intel | -11 -10 -10 ------- Run | Yrd Mat Min Active Infowar (turns) 102 | 2 83 17 Sensors 61 | . 44 17 Seismic 41 | 2 39 . Robot Analysis Total . | . . . Derelict Logs Recovered 2 | . . 2 Drone Launches . | . . . Drone Recoveries . | . . . Exploration | -11 -10 -10 ------------- Run | Yrd Mat Min Turns Passed 1313 | 79 571 663 Spaces Moved 861 | 58 407 396 Core 29 | 25 . 4 Treads 187 | . . 187 Legs . | . . . Wheels 645 | 33 407 205 Hover . | . . . Flight . | . . . Fastest Speed 50 | 50 90 115 Average Speed 115 | 72 98 138 Slowest Speed 300 | 90 115 300 Overloaded Moves . | . . . Propulsion Burnouts . | . . . Robots Hopped . | . . . Potential Cave-ins . | . . . Cave-ins Triggered . | . . . Exploration Rate (%) 51 | 4 73 76 Regions Visited 2 Branch Regions 1 Pre-discovered Areas . | . . . Known Exits Taken 1 | . 1 . Unknown Exits Taken 1 | 1 . . Scrap Searched 1 | . . 1 Spaces Dug 4 | . . 4 Terrain Destroyed 92 | . . 92 Melee . | . . . Projectile . | . . . AOE 92 | . . 92 Terrain Rammed . | . . . Walls Destroyed . | . . . Machines Disabled . | . . . Actions | -11 -10 -10 --------- Run | Yrd Mat Min Total 1042 | 86 485 471 Wait 57 | 7 20 30 Move 859 | 57 406 396 Hop . | . . . Pick Up 21 | 11 5 5 Fast Attach . | . . . Attach 16 | 7 2 7 Detach 1 | . . 1 Swap 4 | . 3 1 Drop 4 | . 3 1 Fire 79 | 4 46 29 Melee . | . . . Ram 1 | . . 1 Kick . | . . . Crush . | . . . Escape Stasis . | . . . Rewire . | . . . Trap . | . . . Miscellaneous . | . . . Route ------- -11/Scrapyard -10/Materials (discovered 4 exits: [*Mat x2] / *Min x2) -10/Mines (discovered 1 exit: [*Mat]) History --------- Turn | Location | Event 8 | -11/Scrapyard | Discovered new exit (range 15) 80 | -11/Scrapyard | Entered Materials 101 | -10/Materials | Discovered new exit (range 6) 311 | -10/Materials | Build established: Mutant 331 | -10/Materials | Discovered new exit (range 3) 536 | -10/Materials | Discovered new exit (range 15) 577 | -10/Materials | Identified exit to Mines 651 | -10/Materials | Entered Mines 699 | -10/Mines | Lost 3 parts (1u2w) 742 | -10/Mines | Discovered new exit (range 10) 872 | -10/Mines | Assembled infested the area 940 | -10/Mines | Core integrity fell below 50% 995 | -10/Mines | Learned 4 Materials zone layouts 1027 | -10/Mines | Learned Materials trap positions 1313 | -10/Mines | Core integrity fell below 20% 1314 | -10/Mines | Destroyed by D-53 Grenadier with Mini Grenade Launcher Last Messages --------------- 01077_ Acquired Hcp. Matter Pod. 01222_ K-01 Serf collects debris. 01238_ Y-45 Defender destroyed. 01238_ Machine disabled. 01241_ K-01 Serf destroyed. 01241_ Critical hit (Burn: +37). 01243_ K-01 Serf collects debris. 01244_ K-01 Serf destroyed. 01244_ Lgt. Ion Engine destroyed. 01244_ Destroyed Lgt. Ion Engine. 01244_ Grenade Launcher destroyed. 01244_ Destroyed Grenade Launcher. 01255_ Y-45 Defender destroyed. 01257_ The unstable cave ceiling collapses. 01260_ Extracted 46 matter. 01264_ The unstable cave ceiling collapses. 01266_ Acquired Core Shielding. 01312_ Lgt. Treads destroyed. 01314_ The unstable cave ceiling collapses. 01314_ Lgt. Assault Rifle destroyed. Map ----- +----------------------------------------------------+ | ?????????????????????????????????##### ##?????? | | ????????????????????????????????## ###????? | | ????????????????????????????????# # #????? | | ????????????????????????????????# % #?????? | | ????????????????????????????????## %! #?????? | | ????????????????????????????????# [!* ##????? | | ????????????????????????????????# * ! #????? | | ????????????????????????????????# ##% ####????? | | ????????????????????????????????## == #?????? | | ????????????????????????????###### #####?? | | ????????????????????????????# #?? | | ????????????????????????????# #?? | | ?????##???????????????####??# #?? | | ????## ??????????????? #??# #?? | | ????# ???##??????????# #??# #?? | | ????# ##?????????# #??# #?? | | ????# """ #?????????# #??# #?? | | ????? """ ??#???????# #??# #?? | | ????? """ ??? ##?????# #??# #?? | | ?????? ??? #?????# #??# #?? | | ##????# ???? ##????# #??# #?? | | ##???# #???? #???## #### #?? | | ##??# ##?## ##### # #### ###########?? | | #??# ### ## ## #?# #???????????? | | #### ## ## ### #???????????? | | ## ## # @ ## #???????????? | | ##### #???????????? | | # #### d #???????????? | | # ### d ####???????????? | | # # #??????????????? | | ####### # ## # ### #??????????????? | | ####### ## ######## #??????????????? | | #### #?????# ########????????????? | | ??# [ ###?????#t#??## ##???????????? | | ??# * #???????# #?## #???????????? | | ??## # # ##?####### ### ##??????????? | | ???## ##??# ##?????????? | | ????# # #???# ##### ##????????? | | ???## #######???# #???###### ##???????? | | ???# #?????????# #????????## ##??????? | | ???# #?????????# #?????????## #??????? | | ???## #?????????# #??????????# ##?????? | | ????# #???????### #??????????# ##????? | | ???## #???????# #??????????## ##???? | | ?### ##???????#[ ##??????????## #???? | | ## #????????# ##??????????## #???? | | # ##???????##| ##?????????## #???? | | # ##????????# #????????## ##???? | | # ##?????????# #????????# """ #????? | | # ###???????##### #????????# """ #????? | +----------------------------------------------------+ Best States ------------- Heat Dissipation 35 Energy Generation 10 Energy Capacity 250 Matter Stores 300 Matter Capacity 300 Sight Range 16 Robot Scan Range 14 Terrain Scan Density 10 Core Shielding 20 Evasion (%) 50 Recoil Reduction 2 Item Schematics ----------------- None Robot Schematics ------------------ None Fabricated ------------ Nothing Repaired ---------- Nothing Alien Tech Used ----------------- None Achievements -------------- None Challenges ------------ None Game ------ Seed ShadeAntimissileAutocannon Manual? 0 Play Time 00:09:11 Cumulative 66.3 hours Start 2025.07.28 @ 15:09:47 End 2025.07.28 @ 15:19:57 Sessions 1 Manual Loads 0 Difficulty Rogue Special Mode None Game No. 145 Rogue 145 Adventurer 0 Explorer 0 Win Type - Total 1 Types 1/0/0/0/0/0/0/0/0/0 Lore% 48 Gallery% 49 Achievement% 36 Wizard Run 0 Options --------- Layout 1 ASCII 0 Keyboard 0 Movement Mouse Keybinds 0 Fullscreen 1 Font 24/Smallcaps Map View 50x40 Zoom Use 0% Tactical HUD 1 Map Filters NONE Filters NONE Steam 1 RUN: f6f074f8-9233-499b-b139-ce9b22aebd1f